Cogmind - Beta 14 @@@ ROGUE MODE // 2025.02.23 @ 13:19:13 Player: Zeta Lockhart Result: Destroyed by as-72867 with Assembled Blade Performance ------------- Evolutions (0) 0 Regions Visited (2) 400 Robots Destroyed (21) 105 Value Destroyed (393) 393 Prototype IDs (0) 0 Alien Tech Used (0) 0 Bonus (0) 0 TOTAL SCORE: 898 Bonus ------- None Cogmind --------- Core Integrity 0/250 Matter 291/300 Energy 250/250 System Corruption 0% Temperature Cool (44) Movement Rolling (105) Ox1 Location -10/Mines Parts ------- > --- POWER (1) -------- Ion Engine > --- PROPULSION (2) --- Wheel Compact Wheel > --- UTILITY (2) ------ Large Storage Unit Core Shielding > --- WEAPON (2) ------- Medium Laser Heavy Assault Rifle > --- INVENTORY (15) --- Improved Ion Engine Improved Ion Engine Wheel Compact Wheel Disposable Heat Sink Disposable Heat Sink Disposable Heat Sink High-capacity Matter Pod (93) Weapon Shielding Weapon Shielding Light Armor Plating Heavy Assault Rifle Light Cannon Light Cannon Light Cannon Peak State ------------ > --- POWER ------------ Ion Engine > --- PROPULSION ------- Aluminum Leg Wheel > --- UTILITY ---------- Large Storage Unit Weapon Shielding > --- WEAPON ----------- Medium Laser Heavy Assault Rifle > --- INVENTORY -------- Improved Ion Engine Improved Ion Engine Compact Wheel Disposable Heat Sink Disposable Heat Sink Disposable Heat Sink High-capacity Matter Pod Weapon Shielding Weapon Shielding Light Armor Plating Heavy Assault Rifle Light Cannon Light Cannon Light Cannon [Rating: 10] Favorites ----------- Power Light Ion Engine Engine Light Ion Engine Propulsion Compact Wheel Leg Aluminum Leg Wheel Compact Wheel Utility Weapon Shielding Device Disposable Heat Sink Storage Large Storage Unit Protection Weapon Shielding Weapon Medium Laser Energy Gun Medium Laser Ballistic Gun Heavy Assault Rifle Build | -11 -10 -10 ------- Run | Yrd Mat Min Slots Evolved . | . . . Power . | . . . Propulsion . | . . . Utility . | . . . Weapon . | . . . Parts Attached 24 | 7 11 6 Power 4 | 1 2 1 Engine 4 | 1 2 1 Core . | . . . Reactor . | . . . Propulsion 6 | 2 1 3 Treads . | . . . Leg 1 | . . 1 Wheel 5 | 2 1 2 Hover . | . . . Flight . | . . . Utility 7 | 2 4 1 Device 3 | 2 1 . Storage 2 | . 2 . Processor . | . . . Hackware . | . . . Protection 2 | . 1 1 Artifact . | . . . Weapon 7 | 2 4 1 Energy Gun 4 | 2 2 . Energy Cannon . | . . . Ballistic Gun 3 | . 2 1 Ballistic Cannon . | . . . Launcher . | . . . Special Weapon . | . . . Impact Weapon . | . . . Slashing Weapon . | . . . Piercing Weapon . | . . . Special Melee Weapon . | . . . Unidentified Prototypes . | . . . Parts Lost 4 | . 1 3 Power . | . . . Propulsion 3 | . 1 2 Utility . | . . . Weapon 1 | . . 1 Highest Loss Streak 2 | . 1 2 To Critical Strikes . | . . . Average Slot Usage (%) 95 | . 95 93 Engine 14 | . 14 14 Wheel 24 | . 25 20 Device 3 | . 4 . Storage 14 | . 14 14 Protection 10 | . 9 14 Energy Gun 22 | . 23 17 Ballistic Gun 4 | . 3 10 Peak Build Rating 10 | 9 9 10 Average Rating 8 | 4 8 9 On Entrance 6 | . 9 9 Naked Turns . | . . . Heaviest Build 31 | 8 29 31 Greatest Support 26 | 26 26 26 Greatest Overweight (x) 2 | . 1 2 Average Overweight (x) . | . . 1 Largest Inventory Capacity 15 | 5 15 15 Average Capacity 11 | 5 11 15 Most Carried 15 | 5 15 15 Average Carried 10 | 2 10 14 Final Capacity 15 | 5 15 15 Final Carried 15 | 4 15 15 Class Distribution -------------------- 100% | Mutant Dominant Class ---------------- Mutant | -10/Materials Mutant | -10/Mines Resources | -11 -10 -10 ----------- Run | Yrd Mat Min Matter Collected 574 | 250 161 163 Remotely . | . . . Salvage Created 673 | 118 365 190 Parts 42 | 4 22 16 Haulers Intercepted . | . . . Recyclers Shooed 2 | . 1 1 Parts Field Recycled . | . . . Retrieved Matter . | . . . Parts Self-Destructed . | . . . Prevented . | . . . Kills | -11 -10 -10 ------- Run | Yrd Mat Min Combat Hostiles Destroyed 13 | . 9 4 Guns 11 | . 7 4 Classes Destroyed 6 | 2 4 . Worker 2 | . 1 1 Tunneler 1 | 1 . . Recycler 2 | 1 . 1 Watcher 3 | . 3 . Swarmer 6 | . 3 3 Grunt 7 | . 6 1 Best Kill Streak 5 | 2 5 3 Combat Bots Only 4 | . 4 2 Max Kills in Single Turn 2 | 1 1 2 Gunslinging . | . . . Exploded . | . . . Melee . | . . . Uniques/NPCs Destroyed . | . . . Combat | -11 -10 -10 -------- Run | Yrd Mat Min Hostile Shots Fired 82 | . 47 35 Missed 16 | . 10 6 Damage Taken 739 | . 387 352 Core 256 | . 119 137 Absorbed by Shields . | . . . Redirected to Shielding 42 | . 11 31 Core Remaining (%) 100 | 100 . . Volleys Fired 61 | 4 38 19 Largest 2 | 2 2 2 Hottest 100 | 90 100 100 Shots Fired 122 | 8 76 38 Gun 122 | 8 76 38 Cannon . | . . . Launcher . | . . . Special . | . . . Kinetic 24 | . 12 12 Thermal 98 | 8 64 26 Explosive . | . . . Electromagnetic . | . . . Robot Hit Streak 21 | 8 21 5 Robot Miss Streak 6 | . 6 3 Penetration Max . | . . . Secondary Targets 2 | . 2 . Max Gunslinging Chain 1 | . 1 . Shots Hit Robots 79 | 8 48 23 Core Hits 31 | 3 18 10 Critical Kills . | . . . Critical Parts Destroyed . | . . . Critical Strikes 8 | . 7 1 Burn 8 | . 7 1 Melee Attacks . | . . . Impact . | . . . Slashing . | . . . Piercing . | . . . Sneak Attacks . | . . . Combat Hostiles . | . . . Follow-up Attacks . | . . . Damage Inflicted 1116 | 94 671 351 Guns 1109 | 94 666 349 Cannons . | . . . Explosions . | . . . Melee . | . . . Ramming 7 | . 5 2 Kinetic 223 | . 73 150 Thermal 886 | 94 593 199 Explosive . | . . . Electromagnetic . | . . . Impact . | . . . Slashing . | . . . Piercing . | . . . Highest Corruption . | . . . Average Corruption . | . . . Corruption Purged . | . . . Corruption Blocked . | . . . Overload Shots . | . . . Overflow Damage . | . . . Projectiles . | . . . Explosions . | . . . Melee . | . . . Knockbacks . | . . . Impact . | . . . Kinetic . | . . . Secondary . | . . . Self-Inflicted Damage 3 | . 2 1 Shots . | . . . Rammed 2 | . 1 1 Targets Rammed 2 | . 1 1 Kicked . | . . . Crushed . | . . . Highest Temperature 363 | 60 197 363 Average Temperature 89 | 33 87 103 Received Heat Transfer 249 | . 159 90 Effects 1 | . . 1 Shutdowns 1 | . . 1 Siege Activations . | . . . Robots Corrupted . | . . . Combat Hostiles . | . . . Parts Fried . | . . . Impact Corruptions . | . . . Robots Melted 2 | . 2 . Combat Hostiles 2 | . 2 . Parts Melted 9 | 2 7 . Heat Transferred 3208 | 248 2294 666 Parts Sabotaged . | . . . Parts Stolen . | . . . Parts Stripped . | . . . Power Chain Reactions . | . . . Alert | -11 -10 -10 ------- Run | Yrd Mat Min Peak Influence 282 | 10 282 154 Initial 54 | . 6 54 Average 125 | 2 141 120 Maximum Alert Level 1 | . 1 . Low Security (%) 80 | 100 71 100 Level 1 19 | . 28 . Level 2 . | . . . Level 3 . | . . . Level 4 . | . . . Level 5 . | . . . High Security . | . . . Max Security . | . . . Squads Dispatched 1 | . 1 . Investigation . | . . . Extermination . | . . . Reinforcement 1 | . 1 . Assault . | . . . Garrison . | . . . Intercept . | . . . Searches Triggered . | . . . Construction Impeded . | . . . Haulers Reinforced . | . . . Active Scanning Responses . | . . . Cargo Convoy Interrupts . | . . . Stealth | -11 -10 -10 --------- Run | Yrd Mat Min Distress Signals . | . . . Communications Jammed . | . . . Distress Signals . | . . . Times Spotted 24 | . 14 10 Peak Tracking Total 3 | . 3 3 Tactical Retreats 4 | . . 4 Traps | -11 -10 -10 ------- Run | Yrd Mat Min Traps Triggered . | . . . Indirectly . | . . . Trap Hack Attempts . | . . . Triggered . | . . . Disarmed . | . . . Reprogrammed . | . . . Reused . | . . . Traps Extracted . | . . . Installed . | . . . Triggered . | . . . Machines | -11 -10 -10 ---------- Run | Yrd Mat Min Machines Disabled . | . . . Max in Single Turn . | . . . Machines Repaired . | . . . Machines Dismantled . | . . . Machines Sabotaged . | . . . Overloaded Fab Kills . | . . . Hacking | -11 -10 -10 --------- Run | Yrd Mat Min Machines Accessed 4 | . 4 . Terminals 4 | . 4 . Fabricators . | . . . Repair Stations . | . . . Recycling Units . | . . . Scanalyzers . | . . . Garrison Access . | . . . Total Hacks 7 | . 7 . Successful 5 | . 5 . Failed 2 | . 2 . Catastrophic . | . . . Database Lockouts . | . . . Manual . | . . . Terminals 7 | . 7 . Fabricators . | . . . Repair Stations . | . . . Recycling Units . | . . . Scanalyzers . | . . . Garrison Access . | . . . Terminal Hacks 5 | . 5 . Emergency Access Points 1 | . 1 . Terminal Index 1 | . 1 . Scanalyzer Index 1 | . 1 . Hauler Manifests 1 | . 1 . Zone Layout 1 | . 1 . Fabricator Hacks . | . . . Repair Station Hacks . | . . . Recycling Unit Hacks . | . . . Scanalyzer . | . . . Garrison Access Hacks . | . . . Unauthorized Hacks . | . . . Terminals . | . . . Fabricators . | . . . Repair Stations . | . . . Recycling Units . | . . . Scanalyzers . | . . . Garrison Access . | . . . Data Cores Recovered . | . . . Used . | . . . Hacking Detections 2 | . 2 . Full Trace Events . | . . . Feedback Events . | . . . Feedback Blocked . | . . . Robot Schematics Acquired . | . . . Robots Built . | . . . Authchips . | . . . Time . | . . . Total Robot Build Rating . | . . . Part Schematics Acquired . | . . . Parts Built . | . . . Authchips . | . . . Time . | . . . Total Part Build Rating . | . . . Parts Repaired . | . . . Time . | . . . Parts Recycled . | . . . Recycled Matter . | . . . Retrieved Matter . | . . . Retrieved Components . | . . . Parts Scanalyzed . | . . . Part Schematics Acquired . | . . . Parts Damaged . | . . . Bothacking | -11 -10 -10 ------------ Run | Yrd Mat Min Used RIF Installer . | . . . Robots Hacked . | . . . Non-combat . | . . . Combat . | . . . Robot Hacks Applied . | . . . Relay Couplers Released . | . . . Fabnet Peak Effective % . | . . . Robots Rewired . | . . . Allies Hacked . | . . . Hacks Repelled . | . . . Allies | -11 -10 -10 -------- Run | Yrd Mat Min Total Allies . | . . . Largest Group . | . . . Highest-Rated Group . | . . . Highest-Rated Ally . | . . . Total Orders . | . . . Ally Attacks . | . . . Total Damage . | . . . Kills . | . . . Allies Corrupted . | . . . Allies Melted . | . . . Intel | -11 -10 -10 ------- Run | Yrd Mat Min Robot Analysis Total . | . . . Derelict Logs Recovered . | . . . Drone Launches . | . . . Drone Recoveries . | . . . Exploration | -11 -10 -10 ------------- Run | Yrd Mat Min Turns Passed 893 | 76 626 191 Spaces Moved 609 | 58 471 80 Core 14 | 14 . . Treads . | . . . Legs . | . . . Wheels 595 | 44 471 80 Hover . | . . . Flight . | . . . Fastest Speed 50 | 50 90 105 Average Speed 97 | 80 98 107 Slowest Speed 115 | 90 105 115 Overloaded Moves . | . . . Propulsion Burnouts . | . . . Robots Hopped . | . . . Cave-ins Triggered . | . . . Exploration Rate (%) 27 | 3 63 15 Regions Visited 2 Branch Regions 1 Pre-discovered Areas . | . . . Known Exits Taken . | . . . Unknown Exits Taken 2 | 1 1 . Scrap Searched 1 | . . 1 Spaces Dug . | . . . Terrain Destroyed . | . . . Melee . | . . . Projectile . | . . . AOE . | . . . Terrain Rammed . | . . . Walls Destroyed . | . . . Machines Disabled . | . . . Actions | -11 -10 -10 --------- Run | Yrd Mat Min Total 789 | 79 563 147 Wait 42 | . 6 36 Move 607 | 57 470 80 Hop . | . . . Pick Up 33 | 11 20 2 Fast Attach 8 | . 5 3 Attach 12 | 7 3 2 Detach 1 | . 1 . Swap 4 | . 3 1 Drop 19 | . 16 3 Fire 61 | 4 38 19 Melee . | . . . Ram 2 | . 1 1 Kick . | . . . Crush . | . . . Escape Stasis . | . . . Rewire . | . . . Trap . | . . . Miscellaneous . | . . . Route ------- -11/Scrapyard -10/Materials (discovered 3 exits: [*Mat] / [*Min x2]) -10/Mines History --------- Turn | Location | Event 26 | -11/Scrapyard | Discovered new exit (range 16) 77 | -11/Scrapyard | Entered Materials 190 | -10/Materials | Discovered new exit (range 7) 306 | -10/Materials | Build established: Mutant 444 | -10/Materials | Discovered new exit (range 13) 446 | -10/Materials | Discovered new exit (range 13) 703 | -10/Materials | Entered Mines 704 | -10/Mines | Assembled infested the area 707 | -10/Mines | Core integrity fell below 50% 760 | -10/Mines | Core integrity fell below 20% 894 | -10/Mines | Destroyed by as-72867 with Assembled Blade Last Messages --------------- 00786_ S-10 Pest destroyed. 00790_ K-01 Serf destroyed. 00790_ R-06 Scavenger destroyed. 00801_ R-06 Scavenger collects Com. Wheel. 00801_ Acquired Com. Wheel. 00804_ Acquired Wheel. 00804_ R-06 Scavenger collects Lgt. Ion Engine. 00807_ Acquired Wheel. 00807_ R-06 Scavenger collects Sml. Storage Unit. 00815_ Acquired 68 matter. 00846_ Searching scrap... 00846_ Found Lrg. Matter Pod. 00846_ Found Core Shielding. 00846_ Found 30 Matter. 00847_ Acquired 30 matter. 00848_ Dropped Weapon Shielding. 00848_ Acquired Core Shielding. 00882_ Slammed into U-05 Engineer. 00883_ U-05 Engineer destroyed. 00884_ Acquired 24 matter. Map ----- +----------------------------------------------------+ | ?????????????????????????????????????????????????? | | ?????????????????????????????????????????????????? | | ?????????????????????????????????????????????????? | | ?????????????????????????????????????????????????? | | ?????????????????????????????????????????????????? | | ?????????????????????????????????????????????????? | | ?????????????????????????????????????????????????? | | ?????????????????????????????????????????????????? | | ?????????????????????????????????????????????????? | | ?????????????????????????????????????????????????? | | ?????????????????????????????????????????????????? | | ?????????????????????????????????????????????????? | | ??????????????????!??????????????????????????????? | | ?????????????????? *?????????????????????????????? | | ?????????????????? ?????????????????????????????? | | ???????????????????""????????????????????????????? | | ???????????????????""????????????????????????????? | | ????????????????????" ???????????????????????????? | | ????????????????????? ???????????????????????????? | | ?????????????????????# ??????????????????????????? | | ?????????????? ?????# ####??????????????????????? | | ?????????????? ?????# #??????????????????????? | | ?????????????? ##???# ##=#??????????????????????? | | ?????????????# ?? ?#!#??????????????????????? | | ????????????? ? ??#a#??????????????????????? | | ????????????? ? ##??#@#??????????????????????? | | ????????????? #????#=######?????????????????? | | ????????????? ?????# #?????????????????? | | ????????????? ??????###### #?????????????????? | | ?????????????# ????????????# #?????????????????? | | ?????????????# ?????????????# #?????????????????? | | ????????????## ?????????????# #?????????????????? | | ???????????## ????????###### ###???????????????? | | ????#????### #????????# #???????????????? | | ????# ## #????????# """" #???????????????? | | ???## ########## """" #???????????????? | | ???# = % [ *% """" #???????????????? | | ???# % = =!* #???????????????? | | ???## #############= #???????????????? | | ????# ????????????# #???????????????? | | ????## ?????????????####! ####???????????????? | | ?????#####????????????????## #??????????????????? | | ?????????????????????????## * ###????????????????? | | ????????????????????????## ##???????????????? | | ????????????????????????# #???????????????? | | ??????????????????????# #???????????????? | | ?????????????????????# ##???????????????? | | ?????????????????????## ######????????????????? | | ??????????????????????## #??????????????????????? | | ???????????????????????###???????????????????????? | +----------------------------------------------------+ Best States ------------- Heat Dissipation 25 Coolant Potential 50 Energy Generation 10 Energy Capacity 250 Matter Stores 300 Matter Capacity 300 Sight Range 16 Terrain Scan Density 10 Core Shielding 20 Weapon Shielding 33 Evasion (%) 50 Item Schematics ----------------- None Robot Schematics ------------------ None Fabricated ------------ Nothing Alien Tech Used ----------------- None Achievements -------------- None Challenges ------------ None Game ------ Seed ReactionBattlePick Manual? 0 Play Time 00:14:44 Cumulative 39.5 hours Start 2025.02.23 @ 13:04:09 End 2025.02.23 @ 13:19:13 Sessions 1 Manual Loads 0 Difficulty Rogue Special Mode None Game No. 38 Rogue 38 Adventurer 0 Explorer 0 Win Type - Total 0 Types 0/0/0/0/0/0/0/0/0 Lore% 3 Gallery% 28 Achievement% 23 Wizard Run 0 Options --------- Layout 0 ASCII 0 Keyboard 0 Movement Mouse Keybinds 0 Fullscreen 2 Font 12/Smallcaps Map View 41x27 Zoom Use 94% Tactical HUD 1 Map Filters NONE Filters NONE Steam 1 RUN: 2675cba3-4b72-4034-a50c-9c3478f9fad4